[Event "*** Titled Tuesday Blitz"]
[Site "Chess.com"]
[Date "2021.03.30"]
[Round "6"]
[White "ErikBlomqvist"]
[Black "Oglob71"]
[Result "1-0"]
[WhiteElo "2599"]
[BlackElo "2399"]
[TimeControl "180+1"]
[EndTime "11:08:23 PDT"]
[Termination "ErikBlomqvist won on time"]

1. e4 {[%clk 0:03:00.9]} 1... c5 {[%clk 0:02:59.4]} 2. Nf3 {[%clk 0:03:00.6]}
2... d6 {[%clk 0:02:59.4]} 3. d4 {[%clk 0:02:57.6]} 3... cxd4 {[%clk 0:02:59.6]}
4. Qxd4 {[%clk 0:02:58.5]} 4... a6 {[%clk 0:02:57.6]} 5. Be2 {[%clk 0:02:58.5]}
5... Nc6 {[%clk 0:02:58]} 6. Qe3 {[%clk 0:02:59.2]} 6... Nf6 {[%clk 0:02:58]} 7.
O-O {[%clk 0:02:59.5]} 7... g6 {[%clk 0:02:55.6]} 8. h3 {[%clk 0:02:59.8]} 8...
Bg7 {[%clk 0:02:55.6]} 9. Rd1 {[%clk 0:02:57.2]} 9... Qa5 {[%clk 0:02:50.9]} 10.
c4 {[%clk 0:02:53.1]} 10... O-O {[%clk 0:02:49.7]} 11. Nc3 {[%clk 0:02:53.3]}
11... Re8 {[%clk 0:02:47.4]} 12. Bd2 {[%clk 0:02:47.3]} 12... Be6 {[%clk
0:02:36.7]} 13. Nd5 {[%clk 0:02:40.4]} 13... Qd8 {[%clk 0:02:36.4]} 14. Bc3
{[%clk 0:02:33.5]} 14... Bxd5 {[%clk 0:02:32.8]} 15. cxd5 {[%clk 0:02:07.1]}
15... Nb8 {[%clk 0:02:31.7]} 16. e5 {[%clk 0:02:05.3]} 16... dxe5 {[%clk
0:02:30.3]} 17. Nxe5 {[%clk 0:02:05.7]} 17... Nfd7 {[%clk 0:02:30]} 18. Nxf7
{[%clk 0:01:39]} 18... Qb6 {[%clk 0:02:22.1]} 19. Qxb6 {[%clk 0:01:18.8]} 19...
Nxb6 {[%clk 0:02:21.3]} 20. Bxg7 {[%clk 0:01:19]} 20... Kxg7 {[%clk 0:02:16]}
21. Ng5 {[%clk 0:01:19.2]} 21... N8d7 {[%clk 0:02:16.2]} 22. Ne6+ {[%clk
0:01:18.8]} 22... Kf7 {[%clk 0:02:15.1]} 23. Nc7 {[%clk 0:01:19.7]} 23... Nf6
{[%clk 0:02:09.5]} 24. Rac1 {[%clk 0:01:17.6]} 24... Rad8 {[%clk 0:02:04.7]} 25.
Nxe8 {[%clk 0:01:17.4]} 25... Nxe8 {[%clk 0:02:05.2]} 26. Bg4 {[%clk 0:01:15]}
26... h5 {[%clk 0:02:02.6]} 27. Be6+ {[%clk 0:01:14.7]} 27... Kf6 {[%clk
0:02:02.9]} 28. Rd3 {[%clk 0:01:12.6]} 28... Nd6 {[%clk 0:02:02.2]} 29. Rf3+
{[%clk 0:01:10.4]} 29... Kg7 {[%clk 0:02:01.2]} 30. b3 {[%clk 0:01:08]} 30...
Rf8 {[%clk 0:01:38.7]} 31. Rxf8 {[%clk 0:01:05.1]} 31... Kxf8 {[%clk 0:01:38.7]}
32. a4 {[%clk 0:01:05]} 32... a5 {[%clk 0:01:36.4]} 33. Rc5 {[%clk 0:01:05.1]}
33... Na8 {[%clk 0:01:33.4]} 34. Rxa5 {[%clk 0:01:04]} 34... Nc7 {[%clk
0:01:33.8]} 35. Rc5 {[%clk 0:01:04]} 35... Nce8 {[%clk 0:01:32]} 36. g3 {[%clk
0:01:00.5]} 36... Kg7 {[%clk 0:01:30.7]} 37. b4 {[%clk 0:01:00.6]} 37... Ne4
{[%clk 0:01:29.3]} 38. Rc4 {[%clk 0:01:00]} 38... N8d6 {[%clk 0:01:29.3]} 39.
Rc7 {[%clk 0:00:59.9]} 39... Kf6 {[%clk 0:01:22.8]} 40. Kg2 {[%clk 0:01:00.2]}
40... g5 {[%clk 0:01:22.2]} 41. f3 {[%clk 0:00:56.6]} 41... Nd2 {[%clk
0:01:20.9]} 42. a5 {[%clk 0:00:50.5]} 42... Nb3 {[%clk 0:01:17.3]} 43. f4 {[%clk
0:00:45.1]} 43... gxf4 {[%clk 0:01:15.9]} 44. gxf4 {[%clk 0:00:46]} 44... Nd4
{[%clk 0:01:15.7]} 45. Rc3 {[%clk 0:00:36.4]} 45... Ne2 {[%clk 0:01:11.2]} 46.
Re3 {[%clk 0:00:28.3]} 46... Nxf4+ {[%clk 0:01:09.4]} 47. Kg3 {[%clk 0:00:28.3]}
47... Ng6 {[%clk 0:01:07.4]} 48. h4 {[%clk 0:00:26.6]} 48... Ne5 {[%clk
0:01:06]} 49. Kf4 {[%clk 0:00:24.3]} 49... Ng6+ {[%clk 0:01:05]} 50. Kg3 {[%clk
0:00:24.8]} 50... Ne5 {[%clk 0:01:04.8]} 51. Re1 {[%clk 0:00:25.4]} 51... Nd3
{[%clk 0:00:59.8]} 52. Rb1 {[%clk 0:00:24.8]} 52... Ke5 {[%clk 0:00:55]} 53. b5
{[%clk 0:00:24.8]} 53... Nc5 {[%clk 0:00:50.4]} 54. Re1+ {[%clk 0:00:22.3]}
54... Kd4 {[%clk 0:00:49.1]} 55. Kf4 {[%clk 0:00:19.3]} 55... Nxb5 {[%clk
0:00:48.4]} 56. Kg5 {[%clk 0:00:18.7]} 56... Nd3 {[%clk 0:00:47]} 57. Rb1 {[%clk
0:00:17.7]} 57... Nd6 {[%clk 0:00:44.1]} 58. Kxh5 {[%clk 0:00:17.3]} 58... Ke5
{[%clk 0:00:42.3]} 59. Kg6 {[%clk 0:00:16.6]} 59... Nf4+ {[%clk 0:00:41.8]} 60.
Kg7 {[%clk 0:00:17.1]} 60... Nh5+ {[%clk 0:00:37.4]} 61. Kf8 {[%clk 0:00:16.7]}
61... Nf4 {[%clk 0:00:19.9]} 62. Re1+ {[%clk 0:00:09.8]} 62... Kf6 {[%clk
0:00:18.5]} 63. Rf1 {[%clk 0:00:09.5]} 63... Ke5 {[%clk 0:00:18.4]} 64. Kxe7
{[%clk 0:00:09.9]} 64... Ne4 {[%clk 0:00:17.9]} 65. Re1 {[%clk 0:00:09.5]} 65...
Ng6+ {[%clk 0:00:16.4]} 66. Kd8 {[%clk 0:00:08.3]} 66... Nxh4 {[%clk 0:00:14.8]}
67. Kc7 {[%clk 0:00:07.9]} 67... Ng6 {[%clk 0:00:13.4]} 68. Kxb7 {[%clk
0:00:07.3]} 68... Nf4 {[%clk 0:00:11.4]} 69. a6 {[%clk 0:00:08.2]} 69... Nd3
{[%clk 0:00:10]} 70. Rxe4+ {[%clk 0:00:07.5]} 70... Kxe4 {[%clk 0:00:09.5]} 71.
a7 {[%clk 0:00:07.7]} 71... Nc5+ {[%clk 0:00:09.7]} 72. Kc8 {[%clk 0:00:08.2]}
72... Nd3 {[%clk 0:00:07.6]} 73. a8=Q {[%clk 0:00:07.6]} 73... Ne5 {[%clk
0:00:07.9]} 74. d6+ {[%clk 0:00:07.6]} 74... Kf4 {[%clk 0:00:07.1]} 75. Qd5
{[%clk 0:00:08.2]} 75... Nf3 {[%clk 0:00:06.2]} 76. d7 {[%clk 0:00:07.5]} 76...
Ng5 {[%clk 0:00:05.9]} 77. Qxg5+ {[%clk 0:00:07.4]} 77... Kxg5 {[%clk
0:00:05.1]} 78. d8=Q+ {[%clk 0:00:08.3]} 78... Kf4 {[%clk 0:00:05.4]} 79. Qf6+
{[%clk 0:00:07.8]} 79... Ke4 {[%clk 0:00:01]} 80. Qf5+ {[%clk 0:00:08.1]} 1-0

[Event "*** Titled Tuesday Blitz"]
[Site "Chess.com"]
[Date "2021.03.30"]
[Round "7"]
[White "jraosam"]
[Black "politeplayer"]
[Result "0-1"]
[WhiteElo "1846"]
[BlackElo "2221"]
[TimeControl "180+1"]
[EndTime "11:13:50 PDT"]
[Termination "politeplayer won by checkmate"]

1. c4 {[%clk 0:03:00.9]} 1... e6 {[%clk 0:02:59.1]} 2. d4 {[%clk 0:03:00.2]}
2... d5 {[%clk 0:02:59.7]} 3. e3 {[%clk 0:03:01.1]} 3... c5 {[%clk 0:03:00.2]}
4. Nf3 {[%clk 0:03:02]} 4... Nf6 {[%clk 0:03:00.5]} 5. Nbd2 {[%clk 0:03:02.9]}
5... a6 {[%clk 0:03:00.8]} 6. Bd3 {[%clk 0:03:02.9]} 6... dxc4 {[%clk
0:02:58.5]} 7. Bxc4 {[%clk 0:02:58.3]} 7... b5 {[%clk 0:02:58.2]} 8. Be2 {[%clk
0:02:58.1]} 8... Bb7 {[%clk 0:02:58.3]} 9. O-O {[%clk 0:02:58.3]} 9... Nbd7
{[%clk 0:02:57.9]} 10. b3 {[%clk 0:02:58.6]} 10... Rc8 {[%clk 0:02:53.8]} 11.
Bb2 {[%clk 0:02:58.3]} 11... Bd6 {[%clk 0:02:50]} 12. Rc1 {[%clk 0:02:54.9]}
12... O-O {[%clk 0:02:47.4]} 13. Re1 {[%clk 0:02:53.7]} 13... Qb6 {[%clk
0:02:32.3]} 14. Ne5 {[%clk 0:02:46.3]} 14... Rfd8 {[%clk 0:02:10.5]} 15. f4
{[%clk 0:02:40.5]} 15... cxd4 {[%clk 0:02:05.3]} 16. exd4 {[%clk 0:02:41.4]}
16... Rxc1 {[%clk 0:01:58.9]} 17. Qxc1 {[%clk 0:02:29.2]} 17... Nxe5 {[%clk
0:01:57.6]} 18. fxe5 {[%clk 0:02:28.5]} 18... Bxe5 {[%clk 0:01:58]} 19. Nf3
{[%clk 0:02:28.5]} 19... Bxf3 {[%clk 0:01:54.1]} 20. Bxf3 {[%clk 0:02:29.4]}
20... Bxd4+ {[%clk 0:01:54]} 21. Bxd4 {[%clk 0:02:29.2]} 21... Qxd4+ {[%clk
0:01:51.1]} 22. Kh1 {[%clk 0:02:29.2]} 22... Qd2 {[%clk 0:01:49.3]} 23. Qc7
{[%clk 0:02:26.8]} 23... Qxe1# {[%clk 0:01:48.6]} 0-1

[Event "*** Titled Tuesday Blitz"]
[Site "Chess.com"]
[Date "2021.03.30"]
[Round "7"]
[White "fQ-System"]
[Black "Make_it_shine060"]
[Result "1-0"]
[WhiteElo "2303"]
[BlackElo "2196"]
[TimeControl "180+1"]
[EndTime "11:13:51 PDT"]
[Termination "fQ-System won by resignation"]

1. d4 {[%clk 0:03:00.9]} 1... Nf6 {[%clk 0:02:59.4]} 2. c4 {[%clk 0:03:00.5]}
2... g6 {[%clk 0:02:58.9]} 3. Nc3 {[%clk 0:03:00.1]} 3... d5 {[%clk 0:02:58.2]}
4. cxd5 {[%clk 0:03:00.1]} 4... Nxd5 {[%clk 0:02:58.2]} 5. e4 {[%clk 0:03:00.7]}
5... Nxc3 {[%clk 0:02:57.3]} 6. bxc3 {[%clk 0:03:01]} 6... Bg7 {[%clk
0:02:57.4]} 7. Be3 {[%clk 0:03:01.6]} 7... c5 {[%clk 0:02:55.8]} 8. Qd2 {[%clk
0:03:01.6]} 8... O-O {[%clk 0:02:54.9]} 9. Rc1 {[%clk 0:03:01.2]} 9... Qa5
{[%clk 0:02:48.1]} 10. Nf3 {[%clk 0:03:00.5]} 10... Nc6 {[%clk 0:02:42.4]} 11.
d5 {[%clk 0:02:59.3]} 11... Rd8 {[%clk 0:02:40.3]} 12. c4 {[%clk 0:02:59]} 12...
Qxd2+ {[%clk 0:02:35.6]} 13. Nxd2 {[%clk 0:02:47.1]} 13... Nd4 {[%clk
0:02:32.6]} 14. Nb3 {[%clk 0:02:43.4]} 14... Nxb3 {[%clk 0:02:23.5]} 15. axb3
{[%clk 0:02:43.2]} 15... b6 {[%clk 0:02:22.8]} 16. Bd3 {[%clk 0:02:42]} 16... e6
{[%clk 0:02:20.2]} 17. O-O {[%clk 0:02:39]} 17... exd5 {[%clk 0:02:12.9]} 18.
exd5 {[%clk 0:02:38.9]} 18... f5 {[%clk 0:02:09.1]} 19. Rfe1 {[%clk 0:02:28.3]}
19... Bb7 {[%clk 0:02:05.5]} 20. Bf4 {[%clk 0:02:22.5]} 20... Rd6 {[%clk
0:01:49.6]} 21. Bxd6 {[%clk 0:02:20.7]} 1-0

[Event "*** Titled Tuesday Blitz"]
[Site "Chess.com"]
[Date "2021.03.30"]
[Round "7"]
[White "jacky72"]
[Black "ChessWarrior7197"]
[Result "0-1"]
[WhiteElo "2717"]
[BlackElo "2901"]
[TimeControl "180+1"]
[EndTime "11:14:15 PDT"]
[Termination "ChessWarrior7197 won by resignation"]

1. d4 {[%clk 0:03:00.9]} 1... e6 {[%clk 0:02:58.6]} 2. c4 {[%clk 0:03:01.5]}
2... b6 {[%clk 0:02:59]} 3. e4 {[%clk 0:03:00.9]} 3... Bb7 {[%clk 0:02:58.9]} 4.
Bd3 {[%clk 0:03:01.5]} 4... Nc6 {[%clk 0:02:55.8]} 5. Nf3 {[%clk 0:02:55]} 5...
Nb4 {[%clk 0:02:56]} 6. O-O {[%clk 0:02:53.3]} 6... Ne7 {[%clk 0:02:51.2]} 7.
Nc3 {[%clk 0:02:49.5]} 7... Nxd3 {[%clk 0:02:50.9]} 8. Qxd3 {[%clk 0:02:49.5]}
8... Ng6 {[%clk 0:02:51]} 9. d5 {[%clk 0:02:47]} 9... Be7 {[%clk 0:02:47.5]} 10.
b3 {[%clk 0:02:43.1]} 10... O-O {[%clk 0:02:47]} 11. Bb2 {[%clk 0:02:43.6]}
11... Bf6 {[%clk 0:02:47]} 12. Rfe1 {[%clk 0:02:38.8]} 12... d6 {[%clk
0:02:47.1]} 13. Nd1 {[%clk 0:02:34.6]} 13... Bxb2 {[%clk 0:02:45.8]} 14. Nxb2
{[%clk 0:02:34.8]} 14... e5 {[%clk 0:02:46.3]} 15. b4 {[%clk 0:02:30.8]} 15...
a5 {[%clk 0:02:46.3]} 16. a3 {[%clk 0:02:30.9]} 16... Bc8 {[%clk 0:02:46.8]} 17.
Qc3 {[%clk 0:02:28.6]} 17... f5 {[%clk 0:02:46.1]} 18. Nd2 {[%clk 0:02:29.2]}
18... Nf4 {[%clk 0:02:45]} 19. Nd3 {[%clk 0:02:22.6]} 19... axb4 {[%clk
0:02:44.2]} 20. axb4 {[%clk 0:02:22.4]} 20... Rxa1 {[%clk 0:02:43.8]} 21. Qxa1
{[%clk 0:02:17.9]} 21... Nxd3 {[%clk 0:02:44.1]} 22. Rb1 {[%clk 0:02:14.3]}
22... Qh4 {[%clk 0:02:32.5]} 23. g3 {[%clk 0:02:11.1]} 23... Qh6 {[%clk
0:02:32.6]} 24. Qc3 {[%clk 0:02:09.3]} 24... Nxf2 {[%clk 0:02:33.1]} 25. Kxf2
{[%clk 0:02:07.3]} 25... Qxh2+ {[%clk 0:02:33.5]} 26. Ke1 {[%clk 0:02:04]} 26...
fxe4 {[%clk 0:02:33.7]} 27. Kd1 {[%clk 0:02:01]} 27... Rf2 {[%clk 0:02:28.7]}
28. Kc2 {[%clk 0:01:51.6]} 28... e3 {[%clk 0:02:27.8]} 29. Qxe3 {[%clk
0:01:52.1]} 29... Bf5+ {[%clk 0:02:28.3]} 30. Kc3 {[%clk 0:01:50.9]} 30... Bxb1
{[%clk 0:02:24.1]} 31. Qxf2 {[%clk 0:01:51.1]} 31... Qxf2 {[%clk 0:02:23.8]} 0-1

[Event "*** Titled Tuesday Blitz"]
[Site "Chess.com"]
[Date "2021.03.30"]
[Round "7"]
[White "c_r_e_e_p_e_r"]
[Black "zurzan"]
[Result "1-0"]
[WhiteElo "2374"]
[BlackElo "1982"]
[TimeControl "180+1"]
[EndTime "11:14:38 PDT"]
[Termination "c_r_e_e_p_e_r won by resignation"]

1. d4 {[%clk 0:03:00.9]} 1... d6 {[%clk 0:02:59.6]} 2. e4 {[%clk 0:03:00.4]}
2... Nf6 {[%clk 0:02:58.6]} 3. Nc3 {[%clk 0:03:01]} 3... Nbd7 {[%clk 0:02:58]}
4. f4 {[%clk 0:03:01.4]} 4... e5 {[%clk 0:02:57.7]} 5. Nf3 {[%clk 0:03:00.2]}
5... exd4 {[%clk 0:02:57.5]} 6. Nxd4 {[%clk 0:03:00.2]} 6... g6 {[%clk
0:02:57.8]} 7. Be2 {[%clk 0:03:00]} 7... Bg7 {[%clk 0:02:57.9]} 8. O-O {[%clk
0:03:00.4]} 8... O-O {[%clk 0:02:57.8]} 9. Kh1 {[%clk 0:03:00.2]} 9... Re8
{[%clk 0:02:57.6]} 10. Bf3 {[%clk 0:02:59.9]} 10... Nc5 {[%clk 0:02:56.4]} 11.
Re1 {[%clk 0:02:57.4]} 11... Ne6 {[%clk 0:02:55.6]} 12. Nde2 {[%clk 0:02:55.7]}
12... Qe7 {[%clk 0:02:46.6]} 13. Ng3 {[%clk 0:02:51.6]} 13... c5 {[%clk
0:02:35.6]} 14. Nd5 {[%clk 0:02:51.1]} 14... Qd7 {[%clk 0:02:31.2]} 15. c3
{[%clk 0:02:35.4]} 15... b5 {[%clk 0:02:20.4]} 16. Be3 {[%clk 0:02:34]} 16...
Bb7 {[%clk 0:02:19.5]} 17. Nxf6+ {[%clk 0:02:07]} 17... Bxf6 {[%clk 0:02:18.8]}
18. e5 {[%clk 0:02:07.5]} 18... Be7 {[%clk 0:02:15.2]} 19. f5 {[%clk 0:01:57.6]}
19... Bxf3 {[%clk 0:02:13.2]} 20. fxe6 {[%clk 0:01:44.5]} 20... Bxd1 {[%clk
0:02:12.7]} 21. exd7 {[%clk 0:01:44.9]} 21... Red8 {[%clk 0:02:12.9]} 22. Raxd1
{[%clk 0:01:44.9]} 22... Rxd7 {[%clk 0:02:12.8]} 23. Bxc5 {[%clk 0:01:41.6]}
23... Rad8 {[%clk 0:02:06.4]} 24. exd6 {[%clk 0:01:38.4]} 24... Bxd6 {[%clk
0:02:02.1]} 25. Ne4 {[%clk 0:01:36.3]} 25... Bxc5 {[%clk 0:02:01]} 26. Rxd7
{[%clk 0:01:33.6]} 26... Rxd7 {[%clk 0:01:59.3]} 27. Nf6+ {[%clk 0:01:33.6]}
27... Kg7 {[%clk 0:02:00.2]} 28. Nxd7 {[%clk 0:01:34.2]} 1-0

[Event "*** Titled Tuesday Blitz"]
[Site "Chess.com"]
[Date "2021.03.30"]
[Round "7"]
[White "pfalcon1949"]
[Black "Chessbard1972"]
[Result "0-1"]
[WhiteElo "1991"]
[BlackElo "2231"]
[TimeControl "180+1"]
[EndTime "11:14:45 PDT"]
[Termination "Chessbard1972 won by resignation"]

1. c4 {[%clk 0:03:00.9]} 1... g6 {[%clk 0:02:57.7]} 2. Nc3 {[%clk 0:02:59.9]}
2... Bg7 {[%clk 0:02:56.8]} 3. g3 {[%clk 0:03:00.5]} 3... d6 {[%clk 0:02:56.4]}
4. Bg2 {[%clk 0:03:01.1]} 4... e5 {[%clk 0:02:55.7]} 5. e4 {[%clk 0:03:00.2]}
5... Nc6 {[%clk 0:02:51]} 6. Nge2 {[%clk 0:03:00.3]} 6... f5 {[%clk 0:02:49.3]}
7. d3 {[%clk 0:02:59.1]} 7... Nf6 {[%clk 0:02:48.5]} 8. O-O {[%clk 0:02:57.2]}
8... O-O {[%clk 0:02:48.1]} 9. Bg5 {[%clk 0:02:47.4]} 9... h6 {[%clk 0:02:46.7]}
10. Bxf6 {[%clk 0:02:46.9]} 10... Qxf6 {[%clk 0:02:45.4]} 11. Nd5 {[%clk
0:02:47.8]} 11... Qd8 {[%clk 0:02:42.7]} 12. Qd2 {[%clk 0:02:42.3]} 12... Ne7
{[%clk 0:02:41.9]} 13. Nxe7+ {[%clk 0:02:40.1]} 13... Qxe7 {[%clk 0:02:41.5]}
14. exf5 {[%clk 0:02:40.5]} 14... gxf5 {[%clk 0:02:40.9]} 15. f4 {[%clk
0:02:38.8]} 15... c6 {[%clk 0:02:34.2]} 16. Rae1 {[%clk 0:02:30.7]} 16... Be6
{[%clk 0:02:32.9]} 17. b3 {[%clk 0:02:24.4]} 17... Rae8 {[%clk 0:02:30.5]} 18.
fxe5 {[%clk 0:02:08.8]} 18... dxe5 {[%clk 0:02:29.1]} 19. Kh1 {[%clk 0:02:00.1]}
19... Qg5 {[%clk 0:02:26.3]} 20. Qxg5 {[%clk 0:01:58]} 20... hxg5 {[%clk
0:02:26.1]} 21. Rf2 {[%clk 0:01:54.2]} 21... f4 {[%clk 0:02:21.4]} 22. Ref1
{[%clk 0:01:52.3]} 22... Bf5 {[%clk 0:02:16]} 23. Be4 {[%clk 0:01:48.3]} 23...
Bxe4+ {[%clk 0:02:12.2]} 24. dxe4 {[%clk 0:01:45.2]} 24... Rd8 {[%clk
0:02:12.2]} 25. Rg2 {[%clk 0:01:31.7]} 25... f3 {[%clk 0:02:08]} 0-1

[Event "*** Titled Tuesday Blitz"]
[Site "Chess.com"]
[Date "2021.03.30"]
[Round "7"]
[White "Terao90"]
[Black "Ali-Farahat"]
[Result "1-0"]
[WhiteElo "2544"]
[BlackElo "2408"]
[TimeControl "180+1"]
[EndTime "11:14:51 PDT"]
[Termination "Terao90 won by resignation"]

1. e4 {[%clk 0:03:00.1]} 1... e5 {[%clk 0:02:59.6]} 2. Nf3 {[%clk 0:03:00]} 2...
Nc6 {[%clk 0:02:59.4]} 3. Bb5 {[%clk 0:03:00.3]} 3... a6 {[%clk 0:02:59.4]} 4.
Ba4 {[%clk 0:03:00.7]} 4... Nf6 {[%clk 0:03:00]} 5. d3 {[%clk 0:03:00.3]} 5...
b5 {[%clk 0:02:58.5]} 6. Bb3 {[%clk 0:03:00.1]} 6... Be7 {[%clk 0:02:59.4]} 7.
O-O {[%clk 0:03:00.1]} 7... d6 {[%clk 0:02:58.8]} 8. a3 {[%clk 0:02:59.2]} 8...
O-O {[%clk 0:02:58.7]} 9. h3 {[%clk 0:02:58.9]} 9... Be6 {[%clk 0:02:58.6]} 10.
c3 {[%clk 0:02:49.5]} 10... Qd7 {[%clk 0:02:53.6]} 11. Nbd2 {[%clk 0:02:46.5]}
11... Rfe8 {[%clk 0:02:52.1]} 12. d4 {[%clk 0:02:42.8]} 12... exd4 {[%clk
0:02:49.3]} 13. cxd4 {[%clk 0:02:43.7]} 13... Bxb3 {[%clk 0:02:49.2]} 14. Qxb3
{[%clk 0:02:43.1]} 14... d5 {[%clk 0:02:49.4]} 15. e5 {[%clk 0:02:40.1]} 15...
Ne4 {[%clk 0:02:49.6]} 16. Re1 {[%clk 0:02:37.3]} 16... Na5 {[%clk 0:02:36.3]}
17. Qc2 {[%clk 0:02:34.9]} 17... f5 {[%clk 0:02:31.5]} 18. exf6 {[%clk
0:02:29.5]} 18... Nxf6 {[%clk 0:02:31.3]} 19. Ne5 {[%clk 0:02:28.4]} 19... Bd6
{[%clk 0:02:30.9]} 20. Nxd7 {[%clk 0:02:23.9]} 20... Rxe1+ {[%clk 0:02:31.8]}
21. Nf1 {[%clk 0:02:24.1]} 21... Nxd7 {[%clk 0:02:32.4]} 22. Qd2 {[%clk
0:02:08.1]} 22... Rxf1+ {[%clk 0:02:14.2]} 23. Kxf1 {[%clk 0:02:06.9]} 23... Nb3
{[%clk 0:02:15.1]} 24. Qg5 {[%clk 0:02:01.2]} 24... Nf6 {[%clk 0:02:08.6]} 25.
Rb1 {[%clk 0:01:58.6]} 25... Re8 {[%clk 0:02:01.5]} 26. Be3 {[%clk 0:01:53.3]}
26... h6 {[%clk 0:01:59.7]} 27. Qf5 {[%clk 0:01:51.7]} 27... Rxe3 {[%clk
0:01:57.3]} 28. fxe3 {[%clk 0:01:51.1]} 28... Nd2+ {[%clk 0:01:57.6]} 29. Ke2
{[%clk 0:01:50.8]} 29... Nxb1 {[%clk 0:01:58.3]} 30. Qxb1 {[%clk 0:01:51]} 30...
Ne4 {[%clk 0:01:56.8]} 31. Qc2 {[%clk 0:01:49.5]} 1-0

[Event "*** Titled Tuesday Blitz"]
[Site "Chess.com"]
[Date "2021.03.30"]
[Round "7"]
[White "elohunter1999"]
[Black "SHIVACalypso"]
[Result "1-0"]
[WhiteElo "2542"]
[BlackElo "2394"]
[TimeControl "180+1"]
[EndTime "11:14:54 PDT"]
[Termination "elohunter1999 won by resignation"]

1. d4 {[%clk 0:03:00.9]} 1... e6 {[%clk 0:03:00.1]} 2. e4 {[%clk 0:03:00]} 2...
d5 {[%clk 0:02:59.4]} 3. Nd2 {[%clk 0:02:59.9]} 3... Nf6 {[%clk 0:02:59.4]} 4.
e5 {[%clk 0:02:59.7]} 4... Nfd7 {[%clk 0:02:58.1]} 5. f4 {[%clk 0:03:00.2]} 5...
c5 {[%clk 0:02:58]} 6. c3 {[%clk 0:03:00.3]} 6... Nc6 {[%clk 0:02:58.6]} 7. Ndf3
{[%clk 0:03:00.1]} 7... cxd4 {[%clk 0:02:56.5]} 8. cxd4 {[%clk 0:02:59.7]} 8...
a5 {[%clk 0:02:56.3]} 9. g3 {[%clk 0:02:58]} 9... a4 {[%clk 0:02:53.4]} 10. Kf2
{[%clk 0:02:57.9]} 10... g6 {[%clk 0:02:51.5]} 11. Kg2 {[%clk 0:02:56.2]} 11...
Be7 {[%clk 0:02:48.1]} 12. h4 {[%clk 0:02:56.2]} 12... h5 {[%clk 0:02:46.6]} 13.
Bd3 {[%clk 0:02:55.8]} 13... b6 {[%clk 0:02:32.2]} 14. Nh3 {[%clk 0:02:46.9]}
14... Ba6 {[%clk 0:02:24.7]} 15. Bxg6 {[%clk 0:02:34.4]} 15... fxg6 {[%clk
0:02:21.1]} 16. Qc2 {[%clk 0:02:34.3]} 16... Ncxe5 {[%clk 0:01:49.8]} 17. fxe5
{[%clk 0:02:31.1]} 17... Nf8 {[%clk 0:01:46.1]} 18. Bg5 {[%clk 0:02:25.8]} 18...
Rc8 {[%clk 0:01:42.2]} 19. Qxa4+ {[%clk 0:02:25]} 19... Qd7 {[%clk 0:01:41.1]}
20. Qxa6 {[%clk 0:02:24.8]} 20... Rc2+ {[%clk 0:01:33.4]} 21. Nf2 {[%clk
0:02:15.9]} 21... Qc6 {[%clk 0:01:29.5]} 22. Rac1 {[%clk 0:02:11.8]} 22... Bxg5
{[%clk 0:01:15.9]} 23. Rxc2 {[%clk 0:02:10.2]} 23... Qxc2 {[%clk 0:01:16.8]} 24.
Nxg5 {[%clk 0:02:10.1]} 24... Qf5 {[%clk 0:01:16.1]} 25. Rc1 {[%clk 0:02:04.3]}
25... Nd7 {[%clk 0:01:12]} 26. Qc8+ {[%clk 0:02:03.1]} 1-0

[Event "*** Titled Tuesday Blitz"]
[Site "Chess.com"]
[Date "2021.03.30"]
[Round "7"]
[White "Korchmar_Vasiliy"]
[Black "Rakesh"]
[Result "1-0"]
[WhiteElo "2640"]
[BlackElo "2489"]
[TimeControl "180+1"]
[EndTime "11:15:20 PDT"]
[Termination "Korchmar_Vasiliy won by resignation"]

1. g4 {[%clk 0:03:00.9]} 1... d5 {[%clk 0:02:58.2]} 2. Bg2 {[%clk 0:02:59.9]}
2... c6 {[%clk 0:02:59.1]} 3. c4 {[%clk 0:02:59]} 3... e6 {[%clk 0:02:59.5]} 4.
Nf3 {[%clk 0:02:51.2]} 4... Nf6 {[%clk 0:02:58.3]} 5. g5 {[%clk 0:02:50.8]} 5...
Ne4 {[%clk 0:02:56]} 6. h4 {[%clk 0:02:50.5]} 6... Bd6 {[%clk 0:02:52.1]} 7. d3
{[%clk 0:02:40.7]} 7... Bb4+ {[%clk 0:02:49.4]} 8. Kf1 {[%clk 0:02:41]} 8... Nd6
{[%clk 0:02:46.9]} 9. Qa4 {[%clk 0:02:31.5]} 9... Ba5 {[%clk 0:02:41.8]} 10. Bf4
{[%clk 0:02:24.6]} 10... Bc7 {[%clk 0:02:39.7]} 11. Nc3 {[%clk 0:02:20.3]} 11...
Nd7 {[%clk 0:02:28.8]} 12. Qa3 {[%clk 0:01:50.5]} 12... Nf8 {[%clk 0:02:22.8]}
13. h5 {[%clk 0:01:32.4]} 13... Nf5 {[%clk 0:01:57.4]} 14. Bxc7 {[%clk
0:01:28.3]} 14... Qxc7 {[%clk 0:01:58.3]} 15. cxd5 {[%clk 0:01:23.9]} 15... exd5
{[%clk 0:01:50.7]} 16. e4 {[%clk 0:01:24]} 16... dxe4 {[%clk 0:01:50.2]} 17.
dxe4 {[%clk 0:01:22.9]} 17... Nd6 {[%clk 0:01:48.9]} 18. h6 {[%clk 0:01:07.3]}
18... g6 {[%clk 0:01:43.8]} 19. Rd1 {[%clk 0:01:05.3]} 19... Bg4 {[%clk
0:01:42.5]} 20. Qxd6 {[%clk 0:01:04.2]} 20... Qb6 {[%clk 0:01:39.5]} 21. Qe5+
{[%clk 0:01:00.9]} 1-0

[Event "*** Titled Tuesday Blitz"]
[Site "Chess.com"]
[Date "2021.03.30"]
[Round "7"]
[White "Omk124"]
[Black "Iskusnyh"]
[Result "0-1"]
[WhiteElo "2489"]
[BlackElo "2640"]
[TimeControl "180+1"]
[EndTime "11:15:34 PDT"]
[Termination "Iskusnyh won by resignation"]

1. e4 {[%clk 0:03:00.9]} 1... e6 {[%clk 0:02:59.4]} 2. d4 {[%clk 0:03:00.8]}
2... d5 {[%clk 0:03:00]} 3. Nd2 {[%clk 0:03:00.8]} 3... c5 {[%clk 0:02:58.7]} 4.
exd5 {[%clk 0:03:01.1]} 4... exd5 {[%clk 0:02:59.3]} 5. Ngf3 {[%clk 0:03:01.1]}
5... Nc6 {[%clk 0:02:59.2]} 6. dxc5 {[%clk 0:03:01.4]} 6... Bxc5 {[%clk
0:02:58.1]} 7. Nb3 {[%clk 0:03:01.8]} 7... Bb6 {[%clk 0:02:55.4]} 8. Be2 {[%clk
0:03:02]} 8... Nf6 {[%clk 0:02:54.5]} 9. O-O {[%clk 0:03:00.8]} 9... O-O {[%clk
0:02:54.9]} 10. c3 {[%clk 0:03:00.7]} 10... Ne4 {[%clk 0:02:48.6]} 11. Bf4
{[%clk 0:02:56.5]} 11... Qf6 {[%clk 0:02:31.1]} 12. Bc1 {[%clk 0:02:40]} 12...
Be6 {[%clk 0:02:25.6]} 13. Nfd4 {[%clk 0:02:39.4]} 13... Rad8 {[%clk 0:02:21.7]}
14. Be3 {[%clk 0:02:38.6]} 14... Bc8 {[%clk 0:01:59.2]} 15. f3 {[%clk
0:02:29.3]} 15... Nd6 {[%clk 0:01:54.4]} 16. Bf2 {[%clk 0:02:28.5]} 16... Rfe8
{[%clk 0:01:51]} 17. a4 {[%clk 0:02:25.1]} 17... Bc7 {[%clk 0:01:31]} 18. Bd3
{[%clk 0:02:16.2]} 18... Nc4 {[%clk 0:01:26.6]} 19. Qc2 {[%clk 0:02:13.1]} 19...
Qh6 {[%clk 0:01:22.8]} 20. g3 {[%clk 0:02:02.4]} 20... Ne3 {[%clk 0:01:18.2]}
21. Bxe3 {[%clk 0:02:02]} 21... Qxe3+ {[%clk 0:01:16]} 22. Kg2 {[%clk
0:02:02.5]} 22... Qh6 {[%clk 0:01:10.3]} 23. Rae1 {[%clk 0:01:57.3]} 23... Bh3+
{[%clk 0:01:09.4]} 24. Kg1 {[%clk 0:01:55.7]} 24... Bxf1 {[%clk 0:01:08.9]} 25.
Rxe8+ {[%clk 0:01:48.9]} 25... Rxe8 {[%clk 0:01:07.4]} 26. Kxf1 {[%clk
0:01:49.8]} 26... Bb6 {[%clk 0:01:01.9]} 27. Nf5 {[%clk 0:01:47.5]} 27... Qh3+
{[%clk 0:01:00.8]} 28. Qg2 {[%clk 0:01:42.8]} 28... Re1+ {[%clk 0:01:01]} 0-1